Cogmind - Beta 10.2 @@@ ROGUE MODE // 2021.08.10 @ 21:44:19 Player: Smakemupagus Result: Destroyed by as-31784 with Assembled Blade Performance ------------- Evolutions (1) 500 Regions Visited (3) 600 Robots Destroyed (18) 90 Value Destroyed (378) 378 Prototype IDs (0) 0 Alien Tech Used (0) 0 Bonus (0) 0 TOTAL SCORE: 1568 Bonus ------- None Cogmind --------- Core Integrity 0/400 Matter 261/300 Energy 100/100 System Corruption 0% Temperature Cool (0) Movement Core (1100) Ox21 Location -9/Mines Parts ------- > --- POWER (2) -------- (None) > --- PROPULSION (2) --- (None) > --- UTILITY (3) ------ High-capacity Storage Unit High-capacity Storage Unit Propulsion Shielding > --- WEAPON (2) ------- (None) > --- INVENTORY (20) --- High-capacity Storage Unit High-capacity Storage Unit Peak State ------------ > --- POWER ------------ Ion Engine Ion Engine > --- PROPULSION ------- Aluminum Leg Aluminum Leg > --- UTILITY ---------- High-capacity Storage Unit Improved Terrain Scanner Weapon Shielding > --- WEAPON ----------- Light EM Pulse Cannon Assault Rifle > --- INVENTORY -------- Ion Engine Ion Engine Hover Unit Hover Unit High-capacity Storage Unit High-capacity Storage Unit High-capacity Storage Unit Propulsion Shielding Particle Gun Light EM Pulse Cannon Assault Rifle Datajack [Rating: 12] Favorites ----------- Power Ion Engine Engine Ion Engine Propulsion Light Treads Treads Light Treads Leg Aluminum Leg Hover Unit Hover Unit Utility High-capacity Storage Unit Device Improved Terrain Scanner Storage High-capacity Storage Unit Protection Weapon Shielding Weapon Assault Rifle Energy Gun Particle Gun Energy Cannon Light EM Pulse Cannon Ballistic Gun Assault Rifle Special Melee Weapon Datajack Build | -11 -10 -9 -9 ------- Run | Scr Mat Mat Min Slots Evolved 2 | . . 2 . Power 1 | . . 1 . Propulsion . | . . . . Utility 1 | . . 1 . Weapon . | . . . . Parts Attached 25 | 7 3 4 11 Power 4 | 1 . 1 2 Engine 4 | 1 . 1 2 Core . | . . . . Reactor . | . . . . Propulsion 6 | 2 . 2 2 Treads 2 | 2 . . . Leg 2 | . . 2 . Wheel . | . . . . Hover 2 | . . . 2 Flight . | . . . . Utility 8 | 2 3 1 2 Device 2 | 1 . 1 . Storage 4 | 1 2 . 1 Processor . | . . . . Hackware . | . . . . Protection 2 | . 1 . 1 Artifact . | . . . . Weapon 7 | 2 . . 5 Energy Gun 1 | . . . 1 Energy Cannon 2 | . . . 2 Ballistic Gun 3 | 2 . . 1 Ballistic Cannon . | . . . . Launcher . | . . . . Special Weapon . | . . . . Impact Weapon . | . . . . Slashing Weapon . | . . . . Piercing Weapon . | . . . . Special Melee Weapon 1 | . . . 1 Unidentified Prototypes . | . . . . Parts Lost 16 | . . . 16 Power 4 | . . . 4 Propulsion 4 | . . . 4 Utility 2 | . . . 2 Weapon 6 | . . . 6 Highest Loss Streak 13 | . . . 13 Average Slot Usage (%) 91 | . 100 99 66 Engine 15 | . 14 21 9 Treads 16 | . 28 17 . Leg 3 | . . 4 8 Hover 1 | . . . 7 Device 5 | . 1 11 3 Storage 13 | . 14 11 15 Protection 10 | . 12 11 8 Energy Cannon 1 | . . . 7 Ballistic Gun 19 | . 28 22 4 Naked Turns . | . . . . Heaviest Build 69 | 14 42 48 69 Greatest Support 40 | 40 40 40 20 Greatest Overweight (x) 21 | 4 1 2 21 Average Overweight (x) 1 | 1 . 1 4 Largest Inventory Capacity 20 | 6 12 12 20 Average Capacity 10 | 5 8 12 15 Most Carried 12 | 5 12 12 12 Average Carried 7 | 2 6 11 6 Final Capacity 20 | 6 12 12 20 Final Carried 12 | 4 12 12 2 Class Distribution -------------------- 90% | Mutant 9% | Hauler-Mutant Dominant Class ---------------- Mutant | -10/Materials Mutant | -9/Materials Mutant | -9/Mines Resources | -11 -10 -9 -9 ----------- Run | Scr Mat Mat Min Matter Collected 580 | 318 90 127 45 Remotely . | . . . . Salvage Created 461 | 132 128 142 59 Parts 41 | 7 12 15 7 Haulers Intercepted . | . . . . Recyclers Shooed 2 | 1 . 1 . Parts Field Recycled . | . . . . Retrieved Matter . | . . . . Parts Self-Destructed . | . . . . Prevented . | . . . . Kills | -11 -10 -9 -9 ------- Run | Scr Mat Mat Min Combat Hostiles Destroyed 10 | . 3 5 2 Guns 9 | . 3 5 1 AOE 1 | . . . 1 Classes Destroyed 9 | 3 3 2 1 Worker 2 | 2 . . . Builder 1 | . 1 . . Tunneler 2 | 1 . . 1 Recycler 1 | 1 . . . Operator 1 | . 1 . . Watcher 1 | . . 1 . Swarmer 3 | . . 3 . Grunt 5 | . 3 2 . Demolisher 2 | . . . 2 Best Kill Streak 4 | 3 4 4 1 Combat Bots Only 3 | . 2 3 1 Max Kills in Single Turn 1 | 1 1 1 1 Gunslinging . | . . . . Exploded 1 | . . . 1 Melee . | . . . . Uniques/NPCs Destroyed . | . . . . Combat | -11 -10 -9 -9 -------- Run | Scr Mat Mat Min Damage Taken 1769 | . 98 198 1473 Core 431 | . 11 46 374 Absorbed by Shields . | . . . . Core Remaining (%) 97 | 100 95 . . Volleys Fired 49 | 8 12 17 12 Largest 2 | 2 2 2 2 Hottest 85 | 40 40 40 85 Shots Fired 92 | 16 24 34 18 Gun 84 | 16 24 34 10 Cannon 8 | . . . 8 Launcher . | . . . . Special . | . . . . Kinetic 80 | 16 24 34 6 Thermal 4 | . . . 4 Explosive . | . . . . Electromagnetic 8 | . . . 8 Robot Hit Streak 13 | 8 13 11 5 Robot Miss Streak 2 | 1 2 2 2 Penetration Max . | . . . . Secondary Targets 1 | . . 1 . Max Gunslinging Chain 1 | . . 1 . Shots Hit Robots 65 | 13 17 21 14 Core Hits 28 | 5 8 9 6 Critical Hits . | . . . . Critical Kills . | . . . . Critical Parts Destroyed . | . . . . Melee Attacks 1 | . . . 1 Impact . | . . . . Slashing . | . . . . Piercing . | . . . . Sneak Attacks . | . . . . Combat Hostiles . | . . . . Follow-up Attacks . | . . . . Damage Inflicted 913 | 177 206 252 278 Guns 735 | 177 206 252 100 Cannons 121 | . . . 121 Explosions 57 | . . . 57 Melee . | . . . . Ramming . | . . . . Kinetic 675 | 177 206 252 40 Thermal 117 | . . . 117 Explosive . | . . . . Electromagnetic 121 | . . . 121 Impact . | . . . . Slashing . | . . . . Piercing . | . . . . Highest Corruption . | . . . . Average Corruption . | . . . . Corruption Purged . | . . . . Overload Shots . | . . . . Overflow Damage . | . . . . Projectiles . | . . . . Explosions . | . . . . Melee . | . . . . Knockbacks . | . . . . Impact . | . . . . Kinetic . | . . . . Secondary . | . . . . Self-Inflicted Damage . | . . . . Shots . | . . . . Rammed . | . . . . Targets Rammed . | . . . . Kicked . | . . . . Crushed . | . . . . Highest Temperature 114 | . . 4 114 Average Temperature 37 | . . 2 44 Received Heat Transfer 181 | . 54 87 40 Siege Activations . | . . . . Robots Corrupted . | . . . . Combat Hostiles . | . . . . Parts Fried 1 | . . . 1 Impact Corruptions . | . . . . Robots Melted . | . . . . Combat Hostiles . | . . . . Parts Melted . | . . . . Heat Transferred 198 | . . . 198 Parts Sabotaged . | . . . . Parts Stolen . | . . . . Parts Stripped . | . . . . Power Chain Reactions 1 | . . . 1 Missiles Intercepted . | . . . . Alert | -11 -10 -9 -9 ------- Run | Scr Mat Mat Min Peak Influence 244 | 20 138 244 99 Initial 94 | . 13 57 94 Average 86 | 3 85 147 44 Maximum Alert Level 1 | . . 1 . Low Security (%) 93 | 100 100 79 100 Level 1 6 | . . 20 . Level 2 . | . . . . Level 3 . | . . . . Level 4 . | . . . . Level 5 . | . . . . High Security . | . . . . Max Security . | . . . . Squads Dispatched 1 | . 1 . . Investigation . | . . . . Extermination . | . . . . Reinforcement 1 | . 1 . . Assault . | . . . . Garrison . | . . . . Intercept . | . . . . Construction Impeded . | . . . . Haulers Reinforced . | . . . . Stealth | -11 -10 -9 -9 --------- Run | Scr Mat Mat Min Distress Signals 1 | . . 1 . Communications Jammed . | . . . . Distress Signals . | . . . . Times Spotted 22 | . 6 12 4 Peak Tracking Total 4 | . 3 4 2 Tactical Retreats 1 | . . 1 . Traps | -11 -10 -9 -9 ------- Run | Scr Mat Mat Min Traps Triggered . | . . . . Indirectly . | . . . . Trap Hack Attempts . | . . . . Triggered . | . . . . Disarmed . | . . . . Reprogrammed . | . . . . Reused . | . . . . Traps Extracted . | . . . . Installed . | . . . . Triggered . | . . . . Machines | -11 -10 -9 -9 ---------- Run | Scr Mat Mat Min Machines Disabled . | . . . . Max in Single Turn . | . . . . Machines Sabotaged . | . . . . Garrisons Compromised . | . . . . Overloaded Fab Kills . | . . . . Fab Network Shutdowns . | . . . . Hacking | -11 -10 -9 -9 --------- Run | Scr Mat Mat Min Machines Accessed 1 | . 1 . . Terminals . | . . . . Fabricators . | . . . . Repair Stations . | . . . . Recycling Units 1 | . 1 . . Scanalyzers . | . . . . Garrison Access . | . . . . Total Hacks 3 | . 3 . . Successful 2 | . 2 . . Failed 1 | . 1 . . Catastrophic . | . . . . Database Lockouts . | . . . . Manual . | . . . . Terminals . | . . . . Fabricators . | . . . . Repair Stations . | . . . . Recycling Units 3 | . 3 . . Scanalyzers . | . . . . Garrison Access . | . . . . Terminal Hacks . | . . . . Fabricator Hacks . | . . . . Repair Station Hacks . | . . . . Recycling Unit Hacks 2 | . 2 . . Process 1 | . 1 . . Report Inventory 1 | . 1 . . Scanalyzer . | . . . . Garrison Access Hacks . | . . . . Unauthorized Hacks . | . . . . Terminals . | . . . . Fabricators . | . . . . Repair Stations . | . . . . Recycling Units . | . . . . Scanalyzers . | . . . . Garrison Access . | . . . . Data Cores Recovered . | . . . . Used . | . . . . Hacking Detections 1 | . 1 . . Full Trace Events 1 | . 1 . . Feedback Events . | . . . . Feedback Blocked . | . . . . Robot Schematics Acquired . | . . . . Robots Built . | . . . . Matter . | . . . . Time . | . . . . Total Robot Build Rating . | . . . . Part Schematics Acquired . | . . . . Parts Built . | . . . . Matter . | . . . . Time . | . . . . Total Part Build Rating . | . . . . Parts Repaired . | . . . . Time . | . . . . Parts Recycled . | . . . . Recycled Matter 136 | . 136 . . Retrieved Matter . | . . . . Retrieved Components . | . . . . Parts Scanalyzed . | . . . . Part Schematics Acquired . | . . . . Parts Damaged . | . . . . Bothacking | -11 -10 -9 -9 ------------ Run | Scr Mat Mat Min Used RIF Installer . | . . . . Robots Hacked 1 | . . . 1 Non-combat . | . . . . Combat 1 | . . . 1 Robot Hacks Applied 1 | . . . 1 parse_system 1 | . . . 1 Relay Couplers Released . | . . . . Robots Rewired . | . . . . Allies Hacked . | . . . . Hacks Repelled . | . . . . Allies | -11 -10 -9 -9 -------- Run | Scr Mat Mat Min Total Allies . | . . . . Largest Group . | . . . . Highest-Rated Group . | . . . . Highest-Rated Ally . | . . . . Total Orders . | . . . . Ally Attacks . | . . . . Total Damage . | . . . . Kills . | . . . . Allies Corrupted . | . . . . Allies Melted . | . . . . Intel | -11 -10 -9 -9 ------- Run | Scr Mat Mat Min Robot Analysis Total . | . . . . Derelict Logs Recovered . | . . . . Drone Launches . | . . . . Drone Recoveries . | . . . . Exploration | -11 -10 -9 -9 ------------- Run | Scr Mat Mat Min Turns Passed 904 | 122 266 313 203 Spaces Moved 367 | 44 132 139 52 Core 26 | 25 . . 1 Treads 261 | 19 132 110 . Legs 63 | . . 29 34 Wheels . | . . . . Hover 17 | . . . 17 Flight . | . . . . Fastest Speed 50 | 50 160 180 150 Average Speed 193 | 179 163 180 316 Slowest Speed 1100 | 250 180 180 1100 Overloaded Moves . | . . . . Propulsion Burnouts . | . . . . Robots Hopped . | . . . . Cave-ins Triggered . | . . . . Exploration Rate (%) 15 | 5 27 17 14 Regions Visited 3 Branch Regions 1 Pre-discovered Areas . | . . . . Known Exits Taken . | . . . . Unknown Exits Taken 3 | 1 1 1 . Scrap Searched . | . . . . Spaces Dug . | . . . . Terrain Destroyed 2 | . . . 2 Melee . | . . . . Projectile . | . . . . AOE 2 | . . . 2 Terrain Rammed . | . . . . Walls Destroyed . | . . . . Machines Disabled . | . . . . Actions | -11 -10 -9 -9 --------- Run | Scr Mat Mat Min Total 474 | 71 158 169 76 Wait 2 | 2 . . . Move 364 | 43 131 138 52 Hop . | . . . . Pick Up 27 | 11 10 6 . Fast Attach . | . . . . Attach 19 | 7 . 2 10 Detach . | . . . . Swap 6 | . 3 2 1 Drop 6 | . 2 4 . Fire 49 | 8 12 17 12 Melee 1 | . . . 1 Ram . | . . . . Kick . | . . . . Crush . | . . . . Escape Stasis . | . . . . Rewire . | . . . . Trap . | . . . . Miscellaneous . | . . . . Route ------- -11/Scrapyard -10/Materials -9/Materials -9/Mines History --------- Turn | Location | Event 25 | -11/Scrapyard | Discovered new exit (range 15) 123 | -11/Scrapyard | Entered Materials 259 | -10/Materials | Discovered new exit (range 16) 300 | -10/Materials | Build established: Mutant 389 | -10/Materials | Entered another Materials area 389 | -9/Materials | Evolved 2 slots: Power x1, Utility x1 648 | -9/Materials | Discovered new exit (range 9) 702 | -9/Materials | Entered Mines 734 | -9/Mines | Assembled infested the area 800 | -9/Mines | Core integrity fell below 50% 836 | -9/Mines | Lost 13 parts (4p3n2u4w) 898 | -9/Mines | Core integrity fell below 20% 905 | -9/Mines | Destroyed by as-31784 with Assembled Blade Last Messages --------------- as-31784 sneak attacks. U-05 Engineer lays Concrete. The unstable cave ceiling collapses. Med. Matter Pod crushed. U-05 Engineer lays Concrete. K-01 Serf collects debris. U-05 Engineer builds a Wall. U-05 Engineer lays Concrete. K-01 Serf collects debris. U-05 Engineer builds a Wall. K-01 Serf collects debris. Hover Unit destroyed. Datajack destroyed. The unstable cave ceiling collapses. 59 Matter crushed. K-01 Serf collects debris. [Achievement: First Step to Greatness] The achievement interface (ESC then open Records) offers an effective way to explore all of your earned achievements as well as seek out new goals for future runs. Map ----- +----------------------------------------------------+ | ??????????????????????????????????????? | | ??????????????????????????????????????? | | ??????????????????????????????????????? | | ??????????????????????????????????????? | | ??????????????????????????????????????? | | ??????????????????????????????????????? | | ??????????????????????????????????????? | | ??????????????????????????????????????? | | ??????????????????????????????????????? | | ??????????????????? ??????????????????? | | ??????????????????????????????????????? | | ??????????????????????????????????????? | | ??????????????????????????????????????? | | ????????????? ??????#?????????????????? | | ??????????????????????????????????????? | | ??????????? ???????#########??????????? | | ??????????????????## ##?????#???? | | ??????????????????# k #???? ###?? | | ??????????????????# t #??? ##? | | ??????????????????# ???#|! # #? | | ??????????????????# ####*% # # | | ?????????????????## # # #= #? | | ??????????????????# ## # # # < # | | ?????????????????## # | | ????????????####### = a | | ??????#??#### # ## # !#@!### # | | ????????### # # #### ; # # | | ???????#?# ## #=*#### # # | | ?????????# = ####???#### # # | | ?#??#????# ### # ##?#?????? # # | | ?????????## # #??????????#? | | ??????????## ## ## ###???????????? | | ???????????## # ##????????????? | | ????????????# #########?????????????? | | ????????????# #?#??????#?"?????????? | | ????????????# ##???????????????????? | | ???????????## ##??????????????????? | | ???????????# ##????#????????????? | | ???????????# ######????????????? | | ???#???????# ##???????????? | | ????????#??## ### #???????????? | | ?#??????????#####?### #???????????? | | ????????????????????## ##???????????? | | ??????????????????????####????????????? | | ????????????????????????????????? ????? | | ?????#????????????????????????????????? | | ?????????????????????????????#????????? | | ??????????????????????????????????????? | | ??????????????????????????????????????? | | ??????????????????????????????????????? | +----------------------------------------------------+ Best States ------------- Heat Dissipation 28 Energy Generation 15 Energy Capacity 400 Matter Stores 300 Matter Capacity 300 Sight Range 16 Terrain Scan Range 16 Terrain Scan Density 10 Propulsion Shielding 33 Weapon Shielding 33 Evasion (%) 40 Recoil Reduction 2 Item Schematics ----------------- None Robot Schematics ------------------ None Fabricated ------------ Nothing Alien Tech Used ----------------- None Achievements -------------- First Step to Greatness Challenges ------------ None Game ------ Seed ElectronModifiedGuard Manual? 0 Play Time 00:23:13 Cumulative 10.2 hours Start 2021.08.10 @ 21:14:04 End 2021.08.10 @ 21:44:19 Sessions 1 Manual Loads 0 Difficulty Rogue Special Mode None Game No. 12 Rogue 12 Adventurer 0 Explorer 0 Win Type - Total 0 Types 0/0/0/0/0/0/0/0/0 Lore% 5 Gallery% 19 Achievement% 5 Wizard Run 0 Options --------- ASCII 0 Keyboard 0 Movement Mouse Keybinds 0 Fullscreen 1 Font 18/SmallcapsGlow Map View 76x50 Tactical HUD 0 Map Filters NONE Filters NONE Steam 1 RUN: a579d7ed-1b63-4683-ac89-c3cbcab77b82